[Event "FRA-ch Youth U20W 2019"]
[Site "Hyeres"]
[Date "2019.04.16"]
[Round "4.3"]
[White "Budak, Lori"]
[Black "Sonet, Sandy"]
[Result "0-1"]
[ECO "B03"]
[WhiteElo "1679"]
[BlackElo "1616"]
[Annotator "NA"]
[PlyCount "78"]
[EventDate "2019.04.14"]
[EventType "swiss"]
[EventCountry "FRA"]
[SourceTitle "playchess.com"]
[Source "ChessBase"]
[SourceQuality "1"]
[TimeControl "5400+30"]

1. e4 {[%emt 0:00:00]} Nf6 {[%emt 0:00:40]} 2. e5 {[%emt 0:00:00]} Nd5 {[%emt 0:00:03]} 3. d4 {[%emt 0:00:13]} d6 {[%emt 0:00:15]} 4. c4 {[%emt 0:00:08]} Nb6 {[%emt 0:00:04]} 5. exd6 {[%emt 0:00:11]} cxd6 {[%emt 0:00:10]} 6. Nc3 {[%emt 0:00:33]} g6 {[%emt 0:00:07]} 7. a4 {[%emt 0:00:17]} a5 {[%emt 0:08:07]} 8. Nf3 {[%emt 0:06:07]} Bg7 {[%emt 0:02:52]} 9. Be2 {[%emt 0:02:48]} O-O {[%emt 0:01:09]} 10. O-O {[%emt 0:00:10]} Nc6 {[%emt 0:07:29]} 11. Nb5 {[%emt 0:04:27]} Bg4 {[%emt 0:13:09]} 12. h3 {[%emt 0:02:29]} Bxf3 {[%emt 0:03:28]} 13. Bxf3 {[%emt 0:00:22]} Nxc4 {[%emt 0:01:50]} 14. Qd3 {[%emt 0:07:05]} Nb6 {[%emt 0:12:28]} 15. Bd2 {[%emt 0:00:18]} d5 {[%emt 0:04:48]} 16. Bc3 {[%emt 0:11:53]} e6 {[%emt 0:13:01]} 17. b3 {[%emt 0:05:21]} Nc8 {[%emt 0:06:49]} 18. Rac1 {[%emt 0:01:53]} N8e7 {[%emt 0:00:38]} 19. g4 {[%emt 0:10:27]} g5 {[%emt 0:04:05]} 20. Bd1 {[%emt 0:07:21]} Ng6 {[%emt 0:03:44]} 21. Bc2 {[%emt 0:00:07]} f5 {[%emt 0:00:25]} 22. Qe3 {[%emt 0:10:39]} Nf4 {[%emt 0:03:25]} 23. gxf5 {[%emt 0:03:53]} exf5 {[%emt 0:00:31]} 24. Qf3 {[%emt 0:02:04]} Qf6 {[%emt 0:04:50]} 25. Rfe1 {[%emt 0:04:18]} Bh6 {[%emt 0:05:12]} 26. Nc7 {[%emt 0:13:39]} Rad8 {[%emt 0:01:07]} 27. Rcd1 {[%emt 0:01:18]} Kh8 {[%emt 0:00:39]} 28. Re5 {[%emt 0:01:20]} g4 {[%emt 0:00:51]} 29. hxg4 {[%emt 0:00:56]} fxg4 {[%emt 0:00:07]} 30. Qg3 {[%emt 0:03:11]} Nh3+ {[%emt 0:00:37]} 31. Kg2 {[%emt 0:00:00]} Qxf2+ {[%emt 0:00:01]} 32. Qxf2 {[%emt 0:00:00]} Rxf2+ {[%emt 0:00:03]} 33. Kg3 {[%emt 0:00:58]} Nxe5 {[%emt 0:00:28]} 34. dxe5 {[%emt 0:00:14]} Rxc2 {[%emt 0:00:35]} 35. Nb5 {[%emt 0:02:50]} Nf2 {[%emt 0:00:48]} 36. e6+ {[%emt 0:00:00]} Kg8 {[%emt 0:00:37]} 37. Kh4 {[%emt 0:00:29]} Nxd1 {[%emt 0:00:40]} 38. Bf6 {[%emt 0:00:19]} Re8 {[%emt 0:01:09]} 39. e7 {[%emt 0:00:33]} Rc6 {[%emt 0:00:53]} 0-1

[Event "FRA-ch Youth U20W 2019"]
[Site "Hyeres"]
[Date "2019.04.16"]
[Round "4.4"]
[White "Fretel, Liza"]
[Black "Bellahcene, Anissa"]
[Result "1-0"]
[ECO "B23"]
[WhiteElo "1892"]
[BlackElo "1816"]
[Annotator "NA"]
[PlyCount "67"]
[EventDate "2019.04.14"]
[EventType "swiss"]
[EventCountry "FRA"]
[SourceTitle "playchess.com"]
[Source "ChessBase"]
[SourceQuality "1"]
[TimeControl "5400+30"]

1. e4 {[%emt 0:00:00]} c5 {[%emt 0:00:00]} 2. Nc3 {[%emt 0:00:00]} Nc6 {[%emt 0:00:07]} 3. Bb5 {[%emt 0:00:12]} e6 {[%emt 0:06:52]} 4. Bxc6 {[%emt 0:04:00]} bxc6 {[%emt 0:00:07]} 5. e5 {[%emt 0:00:28]} Qg5 {[%emt 1:25:24]} 6. Nf3 {[%emt 0:00:57]} Qxg2 {[%emt 0:00:00]} 7. Rg1 {[%emt 0:00:03]} Qh3 {[%emt 0:00:00]} 8. Rg3 {[%emt 0:02:21]} Qh5 {[%emt 0:00:00]} 9. Rg5 {[%emt 0:09:11]} Qh3 {[%emt 0:00:00]} 10. Qe2 {[%emt 0:10:07]} f6 {[%emt 0:00:00]} 11. Rg3 {[%emt 0:01:57]} Qh5 {[%emt 0:00:00]} 12. d3 {[%emt 0:06:13]} Nh6 {[%emt 0:00:00]} 13. exf6 {[%emt 0:02:00]} gxf6 {[%emt 0:00:00]} 14. Ne4 {[%emt 0:02:08]} Be7 {[%emt 0:00:00]} 15. Rg7 {[%emt 0:13:22]} Nf5 {[%emt 0:00:00]} 16. Rxe7+ {[%emt 0:07:02]} Kxe7 {[%emt 0:00:00]} 17. Bf4 {[%emt 0:08:01]} d6 {[%emt 0:00:00]} 18. O-O-O {[%emt 0:01:52]} e5 {[%emt 0:00:00]} 19. Nxf6 {[%emt 0:02:51]} Nd4 {[%emt 0:00:00]} 20. Nxd4 {[%emt 0:04:13]} Qxe2 {[%emt 0:00:00]} 21. Nxe2 {[%emt 0:00:05]} Kxf6 {[%emt 0:00:00]} 22. Be3 {[%emt 0:02:13]} Bg4 {[%emt 0:00:00]} 23. f3 {[%emt 0:00:19]} Bf5 {[%emt 0:00:00]} 24. Ng3 {[%emt 0:00:27]} Rhg8 {[%emt 0:00:00]} 25. f4 {[%emt 0:02:04]} Bg6 {[%emt 0:00:00]} 26. fxe5+ {[%emt 0:01:26]} Kxe5 {[%emt 0:00:00]} 27. Bg5 {[%emt 0:00:13]} Rae8 {[%emt 0:00:00]} 28. Re1+ {[%emt 0:02:05]} Kd5 {[%emt 0:00:00]} 29. c4+ {[%emt 0:01:43]} Kd4 {[%emt 0:00:00]} 30. Kd2 {[%emt 0:00:37]} Bxd3 {[%emt 0:04:30]} 31. Bf6+ {[%emt 0:00:27]} Re5 {[%emt 0:00:27]} 32. b3 {[%emt 0:01:45]} Rf8 {[%emt 0:00:12]} 33. Re4+ {[%emt 0:00:22]} Bxe4 {[%emt 0:00:07]} 34. Ne2# {[%emt 0:00:04]} 1-0

[Event "FRA-ch Youth U20W 2019"]
[Site "Hyeres"]
[Date "2019.04.16"]
[Round "4.5"]
[White "Ranguin, Anna"]
[Black "Guigue, Marie-Celine"]
[Result "1-0"]
[ECO "D17"]
[WhiteElo "1539"]
[BlackElo "1338"]
[Annotator "NA"]
[PlyCount "123"]
[EventDate "2019.04.14"]
[EventType "swiss"]
[EventCountry "FRA"]
[SourceTitle "playchess.com"]
[Source "ChessBase"]
[SourceQuality "1"]
[TimeControl "5400+30"]

1. d4 {[%emt 0:00:00]} d5 {[%emt 0:00:00]} 2. c4 {[%emt 0:00:03]} c6 {[%emt 0:00:02]} 3. Nf3 {[%emt 0:00:53]} Nf6 {[%emt 0:00:12]} 4. Nc3 {[%emt 0:00:17]} dxc4 {[%emt 0:00:20]} 5. a4 {[%emt 0:00:41]} Bf5 {[%emt 0:00:27]} 6. Bf4 {[%emt 0:01:48]} e6 {[%emt 0:01:37]} 7. e3 {[%emt 0:02:03]} Bb4 {[%emt 0:04:25]} 8. Bxc4 {[%emt 0:01:22]} Nbd7 {[%emt 0:02:22]} 9. O-O {[%emt 0:01:34]} O-O {[%emt 0:02:16]} 10. Qb3 {[%emt 0:03:05]} Qb6 {[%emt 0:01:00]} 11. h3 {[%emt 0:01:35]} Nd5 {[%emt 0:09:34]} 12. Nh4 {[%emt 0:05:56]} Nxf4 {[%emt 0:04:32]} 13. Nxf5 {[%emt 0:00:36]} Nxh3+ {[%emt 0:01:20]} 14. gxh3 {[%emt 0:01:59]} exf5 {[%emt 0:00:22]} 15. Ne2 {[%emt 0:02:59]} Bd6 {[%emt 0:04:15]} 16. Qc2 {[%emt 0:02:36]} g6 {[%emt 0:02:14]} 17. Kh1 {[%emt 0:02:13]} Qd8 {[%emt 0:01:10]} 18. Rg1 {[%emt 0:04:00]} Qh4 {[%emt 0:06:27]} 19. Qxf5 {[%emt 0:00:37]} Nf6 {[%emt 0:09:34]} 20. Qf3 {[%emt 0:02:07]} Qe4 {[%emt 0:05:00]} 21. Kg2 {[%emt 0:04:05]} Qxf3+ {[%emt 0:02:03]} 22. Kxf3 {[%emt 0:00:07]} Rae8 {[%emt 0:00:25]} 23. Ng3 {[%emt 0:01:59]} Kh8 {[%emt 0:01:45]} 24. Rae1 {[%emt 0:02:53]} Bxg3 {[%emt 0:04:31]} 25. fxg3 {[%emt 0:04:43]} Ne4 {[%emt 0:03:05]} 26. Kg2 {[%emt 0:05:53]} Re7 {[%emt 0:06:32]} 27. Re2 {[%emt 0:04:25]} Rfe8 {[%emt 0:02:21]} 28. Rge1 {[%emt 0:02:55]} Nd6 {[%emt 0:03:34]} 29. Bd3 {[%emt 0:02:07]} Ne4 {[%emt 0:02:40]} 30. h4 {[%emt 0:04:07]} h6 {[%emt 0:03:04]} 31. Rf1 {[%emt 0:04:53]} Kg7 {[%emt 0:01:15]} 32. Rf4 {[%emt 0:02:01]} g5 {[%emt 0:09:56]} 33. hxg5 {[%emt 0:04:55]} hxg5 {[%emt 0:00:27]} 34. Rxe4 {[%emt 0:01:47]} Rxe4 {[%emt 0:00:24]} 35. Bxe4 {[%emt 0:00:06]} Rxe4 {[%emt 0:00:04]} 36. Kf3 {[%emt 0:00:13]} f5 {[%emt 0:00:42]} 37. Rg2 {[%emt 0:01:37]} g4+ {[%emt 0:01:50]} 38. Ke2 {[%emt 0:02:28]} a6 {[%emt 0:01:50]} 39. a5 {[%emt 0:00:26]} Kf6 {[%emt 0:01:20]} 40. Rh2 {[%emt 0:00:44]} Kg6 {[%emt 0:01:17]} 41. Rh8 {[%emt 0:00:34]} Re7 {[%emt 0:00:41]} 42. b4 {[%emt 0:01:13]} Kf6 {[%emt 0:00:24]} 43. Kd3 {[%emt 0:03:12]} Ke6 {[%emt 0:01:38]} 44. Rh6+ {[%emt 0:00:36]} Kf7 {[%emt 0:01:41]} 45. Rh7+ {[%emt 0:02:36]} Ke6 {[%emt 0:00:09]} 46. Rxe7+ {[%emt 0:00:22]} Kxe7 {[%emt 0:00:04]} 47. e4 {[%emt 0:03:30]} fxe4+ {[%emt 0:01:09]} 48. Kxe4 {[%emt 0:00:27]} Ke6 {[%emt 0:00:22]} 49. Kf4 {[%emt 0:06:39]} Kd5 {[%emt 0:00:07]} 50. Kxg4 {[%emt 0:00:08]} Kxd4 {[%emt 0:00:09]} 51. Kf4 {[%emt 0:00:17]} Kc4 {[%emt 0:00:48]} 52. g4 {[%emt 0:01:19]} Kxb4 {[%emt 0:00:06]} 53. g5 {[%emt 0:00:50]} c5 {[%emt 0:00:08]} 54. Ke3 {[%emt 0:01:04]} Kxa5 {[%emt 0:02:20]} 55. Kd3 {[%emt 0:01:07]} b5 {[%emt 0:00:13]} 56. g6 {[%emt 0:00:18]} c4+ {[%emt 0:00:15]} 57. Kc3 {[%emt 0:00:09]} Ka4 {[%emt 0:00:28]} 58. g7 {[%emt 0:00:07]} b4+ {[%emt 0:00:08]} 59. Kxc4 {[%emt 0:00:16]} b3 {[%emt 0:01:35]} 60. Kc3 {[%emt 0:00:05]} Ka3 {[%emt 0:00:07]} 61. g8=Q {[%emt 0:00:07]} b2 {[%emt 0:00:40]} 62. Qb3# {[%emt 0:07:16]} 1-0

[Event "FRA-ch Youth U20W 2019"]
[Site "Hyeres"]
[Date "2019.04.17"]
[Round "5.1"]
[White "Aouachria, Marwa"]
[Black "Fretel, Liza"]
[Result "1/2-1/2"]
[ECO "B59"]
[WhiteElo "1738"]
[BlackElo "1892"]
[Annotator "NA RC"]
[PlyCount "112"]
[EventDate "2019.04.14"]
[EventType "swiss"]
[EventCountry "FRA"]
[SourceTitle "playchess.com"]
[Source "ChessBase"]
[SourceQuality "1"]
[TimeControl "5400+30"]

1. e4 {[%emt 0:40:03]} c5 {[%emt 1:14:49]} 2. Nf3 {[%emt 0:00:30]} Nc6 {[%emt 0:00:30]} 3. d4 {[%emt 0:00:30]} cxd4 {[%emt 0:00:30]} 4. Nxd4 {[%emt 0:00:30]} Nf6 {[%emt 0:00:30]} 5. Nc3 {[%emt 0:00:30]} d6 {[%emt 0:00:30]} 6. Be2 {[%emt 0:00:30]} e5 {[%emt 0:00:30]} 7. Nb3 {[%emt 0:00:30]} Be7 {[%emt 0:00:30]} 8. Be3 {[%emt 0:00:30]} O-O {[%emt 0:00:30]} 9. O-O {[%emt 0:00:30]} a5 {[%emt 0:00:30]} 10. a4 {[%emt 0:00:30]} Nb4 {[%emt 0:00:30]} 11. Nd5 {[%emt 0:00:30]} Nbxd5 {[%emt 0:00:30]} 12. exd5 {[%emt 0:00:30]} Nd7 {[%emt 0:00:30]} 13. f4 {[%emt 0:00:30]} b6 {[%emt 0:00:30]} 14. fxe5 {[%emt 0:00:30]} dxe5 {[%emt 0:00:30]} 15. Nd2 {[%emt 0:00:30]} Bc5 {[%emt 0:00:30]} 16. Nc4 {[%emt 0:00:30]} Ba6 {[%emt 0:00:30]} 17. Bxc5 {[%emt 0:00:30]} Nxc5 {[%emt 0:00:30]} 18. Ne3 {[%emt 0:00:30]} Qd7 {[%emt 0:00:30]} 19. Bxa6 {[%emt 0:00:30]} Rxa6 {[%emt 0:00:30]} 20. Nf5 {[%emt 0:00:30]} g6 {[%emt 0:00:30]} 21. Nh6+ {[%emt 0:00:30]} Kg7 {[%emt 0:00:30]} 22. Ng4 {[%emt 0:00:30]} f6 {[%emt 0:00:30]} 23. c4 {[%emt 0:00:30]} h5 {[%emt 0:00:30]} 24. Ne3 {[%emt 0:00:30]} f5 {[%emt 0:00:30]} 25. Qc2 {[%emt 0:00:30]} Raa8 {[%emt 0:00:30]} 26. Nd1 {[%emt 0:00:30]} Rac8 {[%emt 0:00:30]} 27. Nc3 {[%emt 0:00:30]} Nb7 {[%emt 0:00:30]} 28. Qe2 {[%emt 0:00:30]} Qd6 {[%emt 0:00:30]} 29. Nb5 {[%emt 0:00:30]} Qc5+ {[%emt 0:00:30]} 30. Kh1 {[%emt 0:00:30]} Rce8 {[%emt 0:00:30]} 31. Rf3 {[%emt 0:00:30]} Nd6 {[%emt 0:00:30]} 32. Nxd6 {[%emt 0:00:30]} Qxd6 {[%emt 0:00:30]} 33. Re1 {[%emt 0:00:30]} Qb4 {[%emt 0:00:30]} 34. b3 {[%emt 0:00:30]} e4 {[%emt 0:00:30]} 35. Re3 {[%emt 0:00:30]} Qd6 {[%emt 0:00:30]} 36. Qb2+ {[%emt 0:00:30]} Qe5 {[%emt 0:00:30]} 37. Qxe5+ {[%emt 0:00:30]} Rxe5 {[%emt 0:00:30]} 38. h4 {[%emt 0:00:30]} Kf6 {[%emt 0:00:30]} 39. g3 {[%emt 0:00:30]} g5 {[%emt 0:00:30]} 40. hxg5+ {[%emt 0:00:30]} Kxg5 {[%emt 0:00:30]} 41. Kg2 {[%emt 0:00:30]} Rh8 {[%emt 0:00:30]} 42. Rh1 {[%emt 0:00:30]} h4 {[%emt 0:00:30]} 43. gxh4+ {[%emt 0:00:30]} Rxh4 {[%emt 0:00:30]} 44. Rxh4 {[%emt 0:00:30]} Kxh4 {[%emt 0:00:30]} 45. Rh3+ {[%emt 0:00:30]} Kg5 {[%emt 0:00:30]} 46. Rh8 {[%emt 0:00:30]} Kf6 {[%emt 0:00:30]} 47. Kf2 {[%emt 0:00:30]} e3+ {[%emt 0:00:30]} 48. Ke2 {[%emt 0:00:30]} Ke7 {[%emt 0:00:30]} 49. Rh5 {[%emt 0:00:30]} Kd6 {[%emt 0:00:30]} 50. Rh6+ {[%emt 0:00:30]} Kc7 {[%emt 0:00:30]} 51. Rf6 {[%emt 0:00:30]} Kb7 {[%emt 0:00:30]} 52. Rf7+ {[%emt 0:00:30]} Kc8 {[%emt 0:00:30]} 53. Rf6 {[%emt 0:00:30]} Kc7 {[%emt 0:00:30]} 54. Rc6+ {[%emt 0:00:30]} Kb7 {[%emt 0:00:30]} 55. Rf6 {[%emt 0:00:30]} Kc7 {[%emt 0:00:30]} 56. Rc6+ {[%emt 0:00:30]} Kb7 {[%emt 0:00:30]} 1/2-1/2

[Event "FRA-ch Youth U20W 2019"]
[Site "Hyeres"]
[Date "2019.04.17"]
[Round "5.2"]
[White "Aubert, Laurane"]
[Black "Sonet, Sandy"]
[Result "1-0"]
[ECO "B03"]
[WhiteElo "1953"]
[BlackElo "1616"]
[Annotator "NA RC"]
[PlyCount "153"]
[EventDate "2019.04.14"]
[EventType "swiss"]
[EventCountry "FRA"]
[SourceTitle "playchess.com"]
[Source "ChessBase"]
[SourceQuality "1"]
[TimeControl "5400+30"]

1. e4 {[%emt 0:00:00]} Nf6 {[%emt 0:00:00]} 2. e5 {[%emt 0:00:00]} Nd5 {[%emt 0:00:00]} 3. d4 {[%emt 0:00:00]} d6 {[%emt 0:00:00]} 4. exd6 {[%emt 0:00:00]} cxd6 {[%emt 0:00:00]} 5. c4 {[%emt 0:00:00]} Nb6 {[%emt 0:00:00]} 6. d5 {[%emt 0:00:07]} g6 {[%emt 0:01:54]} 7. Qd4 {[%emt 0:00:18]} f6 {[%emt 0:04:52]} 8. Nc3 {[%emt 0:04:39]} Bg7 {[%emt 0:03:04]} 9. Nf3 {[%emt 0:01:40]} O-O {[%emt 0:03:00]} 10. Be2 {[%emt 0:01:47]} Na6 {[%emt 0:11:11]} 11. O-O {[%emt 0:03:45]} Qe8 {[%emt 0:07:15]} 12. Re1 {[%emt 0:05:40]} Qf7 {[%emt 0:22:58]} 13. Bd2 {[%emt 0:33:24]} h6 {[%emt 0:09:05]} 14. Bd1 {[%emt 0:11:54]} f5 {[%emt 0:09:27]} 15. Qd3 {[%emt 0:00:37]} Nc5 {[%emt 0:04:46]} 16. Qe2 {[%emt 0:00:52]} Re8 {[%emt 0:01:29]} 17. Nb5 {[%emt 0:04:48]} Na6 {[%emt 0:01:14]} 18. Nxd6 {[%emt 0:05:52]} exd6 {[%emt 0:00:09]} 19. Qxe8+ {[%emt 0:00:04]} Qxe8 {[%emt 0:00:05]} 20. Rxe8+ {[%emt 0:00:04]} Kf7 {[%emt 0:00:25]} 21. Re2 {[%emt 0:02:00]} Nxc4 {[%emt 0:02:15]} 22. Bc3 {[%emt 0:00:47]} Bf8 {[%emt 0:03:40]} 23. Bb3 {[%emt 0:10:10]} Nb6 {[%emt 0:02:25]} 24. a3 {[%emt 0:00:49]} Nc5 {[%emt 0:02:41]} 25. Ba2 {[%emt 0:00:24]} Bd7 {[%emt 0:00:28]} 26. Nd4 {[%emt 0:01:49]} Ne4 {[%emt 0:05:34]} 27. Ba5 {[%emt 0:02:01]} Bg7 {[%emt 0:01:48]} 28. Rd1 {[%emt 0:00:50]} Rc8 {[%emt 0:00:44]} 29. g3 {[%emt 0:02:25]} Nc4 {[%emt 0:01:41]} 30. Bb4 {[%emt 0:01:58]} a5 {[%emt 0:01:00]} 31. Be1 {[%emt 0:00:04]} Ng5 {[%emt 0:01:32]} 32. h4 {[%emt 0:02:11]} Bxd4 {[%emt 0:00:36]} 33. hxg5 {[%emt 0:00:04]} Bg7 {[%emt 0:00:14]} 34. gxh6 {[%emt 0:00:41]} Bxh6 {[%emt 0:00:06]} 35. Bxc4 {[%emt 0:02:26]} Rxc4 {[%emt 0:00:04]} 36. Bxa5 {[%emt 0:00:33]} f4 {[%emt 0:00:54]} 37. Rde1 {[%emt 0:01:50]} Bg5 {[%emt 0:00:10]} 38. Re4 {[%emt 0:00:59]} Rc2 {[%emt 0:00:47]} 39. Bc3 {[%emt 0:00:35]} fxg3 {[%emt 0:00:53]} 40. fxg3 {[%emt 0:00:17]} Bh3 {[%emt 0:00:38]} 41. R4e2 {[%emt 0:00:57]} Rxe2 {[%emt 0:00:20]} 42. Rxe2 {[%emt 0:00:04]} Bf5 {[%emt 0:00:19]} 43. Kf2 {[%emt 0:00:49]} Bd8 {[%emt 0:00:53]} 44. Bb4 {[%emt 0:00:57]} Be7 {[%emt 0:00:45]} 45. Kf3 {[%emt 0:00:33]} b6 {[%emt 0:00:33]} 46. Re1 {[%emt 0:00:17]} Bd7 {[%emt 0:01:06]} 47. Rc1 {[%emt 0:00:47]} Ke8 {[%emt 0:00:00]} 48. Rc7 {[%emt 0:00:14]} Ba4 {[%emt 0:00:27]} 49. Rb7 {[%emt 0:00:29]} b5 {[%emt 0:00:23]} 50. Ke3 {[%emt 0:00:41]} Bb3 {[%emt 0:00:35]} 51. Rxb5 {[%emt 0:00:21]} Bc4 {[%emt 0:00:16]} 52. Ra5 {[%emt 0:00:38]} Kd7 {[%emt 0:00:34]} 53. Kd4 {[%emt 0:00:34]} Bf1 {[%emt 0:00:16]} 54. b3 {[%emt 0:00:34]} Bf6+ {[%emt 0:00:06]} 55. Ke3 {[%emt 0:00:19]} Be5 {[%emt 0:00:21]} 56. Kf3 {[%emt 0:00:35]} Bd3 {[%emt 0:00:46]} 57. Bd2 {[%emt 0:00:24]} Bc2 {[%emt 0:00:16]} 58. b4 {[%emt 0:00:18]} Bd1+ {[%emt 0:00:37]} 59. Kf2 {[%emt 0:00:12]} Bb3 {[%emt 0:00:39]} 60. Bf4 {[%emt 0:00:24]} Bd4+ {[%emt 0:00:22]} 61. Kf3 {[%emt 0:00:20]} Bb6 {[%emt 0:00:49]} 62. Rb5 {[%emt 0:00:51]} Bd1+ {[%emt 0:00:40]} 63. Kg2 {[%emt 0:00:51]} Bc7 {[%emt 0:00:35]} 64. Kf2 {[%emt 0:00:19]} Ba4 {[%emt 0:00:31]} 65. Rb7 {[%emt 0:00:14]} Bb3 {[%emt 0:00:10]} 66. Ra7 {[%emt 0:01:12]} Bxd5 {[%emt 0:00:17]} 67. Be3 {[%emt 0:00:35]} Kc8 {[%emt 0:00:28]} 68. b5 {[%emt 0:00:22]} Kb8 {[%emt 0:00:45]} 69. b6 {[%emt 0:00:00]} Bd8 {[%emt 0:00:16]} 70. Rd7 {[%emt 0:00:05]} Kc8 {[%emt 0:00:23]} 71. Rxd6 {[%emt 0:00:13]} Be4 {[%emt 0:00:51]} 72. a4 {[%emt 0:00:16]} g5 {[%emt 0:00:48]} 73. a5 {[%emt 0:00:19]} Bb7 {[%emt 0:00:12]} 74. Rg6 {[%emt 0:00:20]} Be4 {[%emt 0:00:54]} 75. Rg8 {[%emt 0:00:45]} Bd5 {[%emt 0:00:20]} 76. Rg7 {[%emt 0:00:47]} g4 {[%emt 0:00:50]} 77. Rxg4 {[%emt 0:00:15]} 1-0

[Event "FRA-ch Youth U20W 2019"]
[Site "Hyeres"]
[Date "2019.04.17"]
[Round "5.3"]
[White "Pigeat, Typhaine"]
[Black "Milroy, Melena"]
[Result "1-0"]
[ECO "B01"]
[WhiteElo "1742"]
[BlackElo "1720"]
[Annotator "NA RC"]
[PlyCount "113"]
[EventDate "2019.04.14"]
[EventType "swiss"]
[EventCountry "FRA"]
[SourceTitle "playchess.com"]
[Source "ChessBase"]
[SourceQuality "1"]
[TimeControl "5400+30"]

1. e4 {[%emt 0:00:00]} d5 {[%emt 0:00:00]} 2. exd5 {[%emt 0:00:00]} Nf6 {[%emt 0:00:00]} 3. d4 {[%emt 0:00:10]} Bg4 {[%emt 0:00:00]} 4. Be2 {[%emt 0:01:32]} Bxe2 {[%emt 0:00:00]} 5. Nxe2 {[%emt 0:00:36]} Qxd5 {[%emt 0:00:00]} 6. O-O {[%emt 0:01:40]} Nc6 {[%emt 0:00:22]} 7. Be3 {[%emt 0:01:31]} O-O-O {[%emt 0:00:13]} 8. c3 {[%emt 0:09:29]} h5 {[%emt 0:08:19]} 9. Qb3 {[%emt 0:07:22]} e6 {[%emt 0:13:19]} 10. Qxd5 {[%emt 0:02:01]} Nxd5 {[%emt 0:00:04]} 11. Nd2 {[%emt 0:04:24]} Bd6 {[%emt 0:05:22]} 12. Ne4 {[%emt 0:06:00]} Nce7 {[%emt 0:07:54]} 13. c4 {[%emt 0:11:48]} Nb4 {[%emt 0:03:03]} 14. c5 {[%emt 0:02:17]} Bxh2+ {[%emt 0:06:22]} 15. Kxh2 {[%emt 0:00:28]} Nf5 {[%emt 0:00:33]} 16. a3 {[%emt 0:24:01]} Nc6 {[%emt 0:10:47]} 17. Rfd1 {[%emt 0:03:33]} Rd7 {[%emt 0:01:54]} 18. N4g3 {[%emt 0:05:45]} Nfe7 {[%emt 0:08:19]} 19. b4 {[%emt 0:00:59]} Rhd8 {[%emt 0:02:22]} 20. Rdc1 {[%emt 0:02:10]} h4 {[%emt 0:02:55]} 21. Nh5 {[%emt 0:05:06]} Nf5 {[%emt 0:02:16]} 22. Nhf4 {[%emt 0:04:52]} Ncxd4 {[%emt 0:02:53]} 23. Nxd4 {[%emt 0:01:17]} Nxd4 {[%emt 0:00:10]} 24. Bxd4 {[%emt 0:00:07]} Rxd4 {[%emt 0:00:06]} 25. Nh3 {[%emt 0:00:21]} f6 {[%emt 0:02:40]} 26. f4 {[%emt 0:02:04]} e5 {[%emt 0:03:59]} 27. fxe5 {[%emt 0:00:30]} fxe5 {[%emt 0:00:05]} 28. Re1 {[%emt 0:00:18]} Re8 {[%emt 0:00:19]} 29. Rad1 {[%emt 0:01:05]} Rc4 {[%emt 0:01:32]} 30. Re3 {[%emt 0:00:44]} a5 {[%emt 0:01:29]} 31. Rde1 {[%emt 0:00:44]} axb4 {[%emt 0:03:05]} 32. axb4 {[%emt 0:00:38]} e4 {[%emt 0:01:37]} 33. Rb1 {[%emt 0:00:32]} Kd7 {[%emt 0:00:52]} 34. Rb2 {[%emt 0:01:04]} Kc6 {[%emt 0:00:30]} 35. Nf2 {[%emt 0:00:33]} Kb5 {[%emt 0:00:33]} 36. Kh3 {[%emt 0:00:29]} g5 {[%emt 0:01:24]} 37. Kg4 {[%emt 0:00:19]} Re5 {[%emt 0:00:54]} 38. Nh3 {[%emt 0:00:48]} Rxb4 {[%emt 0:00:18]} 39. Rxb4+ {[%emt 0:00:33]} Kxb4 {[%emt 0:00:04]} 40. Nxg5 {[%emt 0:00:21]} Kxc5 {[%emt 0:00:18]} 41. Rxe4 {[%emt 0:00:50]} Rxe4+ {[%emt 0:01:55]} 42. Nxe4+ {[%emt 0:00:05]} Kd4 {[%emt 0:00:05]} 43. Nd2 {[%emt 0:00:41]} b5 {[%emt 0:00:55]} 44. Kxh4 {[%emt 0:00:20]} c5 {[%emt 0:03:03]} 45. g4 {[%emt 0:00:46]} c4 {[%emt 0:00:15]} 46. g5 {[%emt 0:00:24]} c3 {[%emt 0:00:52]} 47. Nb3+ {[%emt 0:00:27]} Kc4 {[%emt 0:00:49]} 48. Nc1 {[%emt 0:00:55]} b4 {[%emt 0:03:52]} 49. g6 {[%emt 0:00:12]} b3 {[%emt 0:00:05]} 50. g7 {[%emt 0:00:24]} b2 {[%emt 0:00:07]} 51. g8=Q+ {[%emt 0:00:09]} Kd4 {[%emt 0:01:17]} 52. Qg1+ {[%emt 0:01:20]} Kc4 {[%emt 0:00:48]} 53. Qf1+ {[%emt 0:00:31]} Kc5 {[%emt 0:02:29]} 54. Qf2+ {[%emt 0:00:42]} Kd5 {[%emt 0:01:21]} 55. Qc2 {[%emt 0:00:20]} bxc1=Q {[%emt 0:00:10]} 56. Qxc1 {[%emt 0:00:10]} Kc4 {[%emt 0:00:16]} 57. Qc2 {[%emt 0:00:19]} 1-0

[Event "FRA-ch Youth U20W 2019"]
[Site "Hyeres"]
[Date "2019.04.17"]
[Round "5.4"]
[White "Ranguin, Anna"]
[Black "Budak, Lori"]
[Result "1-0"]
[ECO "D30"]
[WhiteElo "1539"]
[BlackElo "1679"]
[Annotator "NA RC"]
[PlyCount "65"]
[EventDate "2019.04.14"]
[EventType "swiss"]
[EventCountry "FRA"]
[SourceTitle "playchess.com"]
[Source "ChessBase"]
[SourceQuality "1"]
[TimeControl "5400+30"]

1. d4 {[%emt 0:00:00]} d5 {[%emt 0:00:00]} 2. c4 {[%emt 0:00:00]} e6 {[%emt 0:00:00]} 3. Nf3 {[%emt 0:00:08]} Be7 {[%emt 0:00:00]} 4. Bf4 {[%emt 0:00:26]} Nf6 {[%emt 0:00:30]} 5. e3 {[%emt 0:00:29]} O-O {[%emt 0:00:51]} 6. Nbd2 {[%emt 0:00:52]} c5 {[%emt 0:01:02]} 7. dxc5 {[%emt 0:02:46]} Qa5 {[%emt 0:03:38]} 8. a3 {[%emt 0:05:08]} Qxc5 {[%emt 0:23:45]} 9. b4 {[%emt 0:02:59]} Qc6 {[%emt 0:03:26]} 10. Ne5 {[%emt 0:02:10]} Qe8 {[%emt 0:00:28]} 11. c5 {[%emt 0:02:57]} Nbd7 {[%emt 0:26:50]} 12. Bb5 {[%emt 0:03:53]} a6 {[%emt 0:02:33]} 13. Qa4 {[%emt 0:02:40]} Qd8 {[%emt 0:07:24]} 14. Rc1 {[%emt 0:04:13]} Nxe5 {[%emt 0:01:56]} 15. Bxe5 {[%emt 0:00:38]} Ng4 {[%emt 0:02:49]} 16. Bb2 {[%emt 0:18:21]} Qc7 {[%emt 0:06:00]} 17. Nf3 {[%emt 0:04:04]} e5 {[%emt 0:02:23]} 18. h3 {[%emt 0:01:35]} e4 {[%emt 0:03:56]} 19. hxg4 {[%emt 0:07:52]} exf3 {[%emt 0:01:40]} 20. gxf3 {[%emt 0:00:50]} Bxg4 {[%emt 0:03:36]} 21. Bd3 {[%emt 0:01:10]} Bxf3 {[%emt 0:01:39]} 22. Rxh7 {[%emt 0:00:47]} f6 {[%emt 0:02:19]} 23. Kd2 {[%emt 0:04:45]} a5 {[%emt 0:02:02]} 24. Rg1 {[%emt 0:01:59]} g5 {[%emt 0:00:55]} 25. Bxf6 {[%emt 0:04:56]} Rxf6 {[%emt 0:00:36]} 26. Rxg5+ {[%emt 0:00:19]} Kf8 {[%emt 0:00:45]} 27. Rh8+ {[%emt 0:00:38]} Kf7 {[%emt 0:00:28]} 28. Rxa8 {[%emt 0:00:21]} Be4 {[%emt 0:01:41]} 29. Qe8+ {[%emt 0:00:48]} Ke6 {[%emt 0:00:15]} 30. Qg8+ {[%emt 0:00:39]} Kd7 {[%emt 0:00:48]} 31. Bb5+ {[%emt 0:00:53]} Rc6 {[%emt 0:00:29]} 32. Bxc6+ {[%emt 0:01:14]} Qxc6 {[%emt 0:00:31]} 33. Qe8+ {[%emt 0:00:45]} 1-0